fUST/lending_fUST_20260504
["ID","MTS","AMOUNT","RATE_DAILY","PERIOD"]
[421542584,1777841447000,-1097.14,0.00016438,2]
[421542586,1777841447000,-500.0,0.00016438,2]
[421542590,1777841447000,-500.0,0.00016438,2]
[421542588,1777841447000,-500.0,0.00016438,2]
[421542589,1777841447000,-1718.95,0.00016438,2]
[421542596,1777841447000,-615.1,0.00016438,2]
[421542597,1777841447000,-500.0,0.00016438,2]
[421542593,1777841447000,-249.11250926,0.00016438,2]
[421542579,1777841447000,-500.0,0.00016438,2]
[421542595,1777841447000,-500.0,0.00016438,2]
[421542669,1777841448000,-686.48,0.00016438,2]
[421542667,1777841448000,-500.0,0.00016438,2]
[421542654,1777841448000,-500.0,0.00016438,2]
[421542672,1777841448000,-500.0,0.00016438,2]
[421542661,1777841448000,-3111.66,0.00016438,2]
[421542665,1777841448000,-500.0,0.00016438,2]
[421542658,1777841448000,-760.93,0.00016438,2]
[421542664,1777841448000,-500.0,0.00016438,2]
[421542662,1777841448000,-543.71,0.00016438,2]
[421542657,1777841448000,-500.0,0.00016438,2]
[421542671,1777841448000,-5180.02,0.00016438,2]
[421542666,1777841448000,-1088.02,0.00016438,2]
[421542670,1777841448000,-500.0,0.00016438,2]
[421542678,1777841448000,-826.42,0.00016438,2]
[421542668,1777841448000,-500.0,0.00016438,2]
[421542685,1777841448000,-500.0,0.00016438,2]
[421542674,1777841448000,-794.05,0.00016438,2]
[421542684,1777841448000,-500.0,0.00016438,2]
[421542673,1777841448000,-560.92,0.00016438,2]
[421542675,1777841448000,-500.0,0.00016438,2]
[421542676,1777841448000,-500.0,0.00016438,2]
[421542679,1777841448000,-500.0,0.00016438,2]
[421542680,1777841448000,-500.0,0.00016438,2]
[421542683,1777841448000,-879.89,0.00016438,2]
[421542681,1777841448000,-744.67,0.00016438,2]
[421542677,1777841448000,-500.0,0.00016438,2]
[421542656,1777841448000,-1152.13,0.00016438,2]
[421542663,1777841448000,-1762.77,0.00016438,2]
[421542653,1777841448000,-1230.34,0.00016438,2]
[421542627,1777841448000,-5158.42,0.00016438,2]
[421542651,1777841448000,-500.0,0.00016438,2]
[421542635,1777841448000,-2589.61,0.00016438,2]
[421542636,1777841448000,-546.94,0.00016438,2]
[421542682,1777841448000,-500.0,0.00016438,2]
[421542626,1777841448000,-524.86,0.00016438,2]
[421542633,1777841448000,-826.33,0.00016438,2]
[421542628,1777841448000,-500.0,0.00016438,2]
[421542631,1777841448000,-500.0,0.00016438,2]
[421542630,1777841448000,-500.0,0.00016438,2]
[421542629,1777841448000,-522.82,0.00016438,2]
[421542634,1777841448000,-2485.44,0.00016438,2]
[421542632,1777841448000,-1512.6,0.00016438,2]
[421542637,1777841448000,-760.79,0.00016438,2]
[421542642,1777841448000,-500.0,0.00016438,2]
[421542655,1777841448000,-332.41606576,0.00016438,2]
[421542640,1777841448000,-500.0,0.00016438,2]
[421542638,1777841448000,-500.0,0.00016438,2]
[421542641,1777841448000,-500.0,0.00016438,2]
[421542643,1777841448000,-858.23,0.00016438,2]
[421542644,1777841448000,-500.0,0.00016438,2]
[421542647,1777841448000,-1266.55,0.00016438,2]
[421542645,1777841448000,-500.0,0.00016438,2]
[421542646,1777841448000,-682.96,0.00016438,2]
[421542649,1777841448000,-588.3,0.00016438,2]
[421542659,1777841448000,-2205.14,0.00016438,2]
[421542650,1777841448000,-500.0,0.00016438,2]
[421542652,1777841448000,-500.0,0.00016438,2]
[421542648,1777841448000,-2127.41,0.00016438,2]
[421542660,1777841448000,-529.68,0.00016438,2]
[421542639,1777841448000,-2232.71,0.00016438,2]
[421542686,1777841448000,-508.08,0.00016438,2]
[421542696,1777841448000,-995.72,0.00016438,2]
[421542693,1777841448000,-500.0,0.00016438,2]
[421542719,1777841448000,-2003.19,0.00016438,2]
[421542716,1777841448000,-755.15,0.00016438,2]
[421542718,1777841448000,-500.0,0.00016438,2]
[421542726,1777841448000,-550.04397144,0.00016438,2]
[421542736,1777841448000,-500.0,0.00016438,2]
[421542725,1777841448000,-500.0,0.00016438,2]
[421542737,1777841448000,-183.37500551,0.00016438,2]
[421542728,1777841448000,-904.13,0.00016438,2]
[421542727,1777841448000,-500.0,0.00016438,2]
[421542730,1777841448000,-500.0,0.00016438,2]
[421542729,1777841448000,-500.0,0.00016438,2]
[421542732,1777841448000,-1036.03,0.00016438,2]
[421542734,1777841448000,-500.0,0.00016438,2]
[421542715,1777841448000,-500.0,0.00016438,2]
[421542735,1777841448000,-5186.02,0.00016438,2]
[421542731,1777841448000,-500.0,0.00016438,2]
[421542738,1777841448000,-5238.26,0.00016438,2]
[421542749,1777841448000,-533.04,0.00016438,2]
[421542689,1777841448000,-500.0,0.00016438,2]
[421542739,1777841448000,-500.0,0.00016438,2]
[421542741,1777841448000,-606.74,0.00016438,2]
[421542742,1777841448000,-500.0,0.00016438,2]
[421542743,1777841448000,-500.0,0.00016438,2]
[421542745,1777841448000,-500.0,0.00016438,2]
[421542744,1777841448000,-520.87,0.00016438,2]
[421542747,1777841448000,-153.50463773,0.00016438,2]
[421542746,1777841448000,-500.0,0.00016438,2]
[421542748,1777841448000,-583.84,0.00016438,2]
[421542733,1777841448000,-500.0,0.00016438,2]
[421542721,1777841448000,-1198.61,0.00016438,2]
[421542740,1777841448000,-705.71,0.00016438,2]
[421542717,1777841448000,-685.35,0.00016438,2]
[421542720,1777841448000,-500.0,0.00016438,2]
[421542691,1777841448000,-500.0,0.00016438,2]
[421542688,1777841448000,-500.0,0.00016438,2]
[421542690,1777841448000,-500.0,0.00016438,2]
[421542692,1777841448000,-520.08,0.00016438,2]
[421542694,1777841448000,-500.0,0.00016438,2]
[421542697,1777841448000,-500.0,0.00016438,2]
[421542698,1777841448000,-5173.37,0.00016438,2]
[421542687,1777841448000,-500.0,0.00016438,2]
[421542700,1777841448000,-522.4,0.00016438,2]
[421542699,1777841448000,-500.0,0.00016438,2]
[421542702,1777841448000,-500.0,0.00016438,2]
[421542705,1777841448000,-500.0,0.00016438,2]
[421542710,1777841448000,-500.0,0.00016438,2]
[421542695,1777841448000,-500.0,0.00016438,2]
[421542706,1777841448000,-719.76,0.00016438,2]
[421542713,1777841448000,-500.0,0.00016438,2]
[421542701,1777841448000,-500.0,0.00016438,2]
[421542714,1777841448000,-500.0,0.00016438,2]
[421542724,1777841448000,-2759.47,0.00016438,2]
[421542722,1777841448000,-500.0,0.00016438,2]
[421542712,1777841448000,-155.33271842,0.00016438,2]
[421542723,1777841448000,-4078.58,0.00016438,2]
[421542708,1777841448000,-1261.7,0.00016438,2]
[421542709,1777841448000,-500.0,0.00016438,2]
[421542707,1777841448000,-597.61,0.00016438,2]
[421542704,1777841448000,-500.0,0.00016438,2]
[421542703,1777841448000,-500.0,0.00016438,2]
[421542711,1777841448000,-500.0,0.00016438,2]
[421542774,1777841449000,-1944.52,0.00016438,2]
[421542776,1777841449000,-500.0,0.00016438,2]
[421542764,1777841449000,-4065.49,0.00016438,2]
[421542775,1777841449000,-500.0,0.00016438,2]
[421542784,1777841449000,-500.0,0.00016438,2]
[421542780,1777841449000,-8873.86,0.00016438,2]
[421542787,1777841449000,-201.61750916,0.00016438,2]
[421542782,1777841449000,-510.39,0.00016438,2]
[421542779,1777841449000,-12100.81,0.00016438,2]
[421542783,1777841449000,-500.0,0.00016438,2]
[421542786,1777841449000,-772.14,0.00016438,2]
[421542785,1777841449000,-1088.66,0.00016438,2]
[421542778,1777841449000,-500.0,0.00016438,2]
[421542781,1777841449000,-500.0,0.00016438,2]
[421542788,1777841449000,-500.0,0.00016438,2]
[421542789,1777841449000,-500.0,0.00016438,2]
[421542792,1777841449000,-751.65,0.00016438,2]
[421542770,1777841449000,-500.0,0.00016438,2]
[421542777,1777841449000,-500.0,0.00016438,2]
[421542773,1777841449000,-500.0,0.00016438,2]
[421542758,1777841449000,-500.0,0.00016438,2]
[421542767,1777841449000,-500.0,0.00016438,2]
[421542751,1777841449000,-500.0,0.00016438,2]
[421542753,1777841449000,-512.11,0.00016438,2]
[421542752,1777841449000,-500.0,0.00016438,2]
[421542750,1777841449000,-500.0,0.00016438,2]
[421542761,1777841449000,-500.0,0.00016438,2]
[421542762,1777841449000,-500.0,0.00016438,2]
[421542754,1777841449000,-500.0,0.00016438,2]
[421542759,1777841449000,-500.0,0.00016438,2]
[421542771,1777841449000,-500.0,0.00016438,2]
[421542755,1777841449000,-306.9414884,0.00016438,2]
[421542756,1777841449000,-500.0,0.00016438,2]
[421542757,1777841449000,-13840.51,0.00016438,2]
[421542763,1777841449000,-500.0,0.00016438,2]
[421542765,1777841449000,-500.0,0.00016438,2]
[421542766,1777841449000,-500.0,0.00016438,2]
[421542772,1777841449000,-4573.91,0.00016438,2]
[421542768,1777841449000,-4174.66,0.00016438,2]
[421542769,1777841449000,-2632.41,0.00016438,2]
[421542760,1777841449000,-500.0,0.00016438,2]
[421542791,1777841449000,-608.68,0.00016438,2]
[421542790,1777841449000,-500.0,0.00016438,2]
[421542793,1777841449000,-957.39,0.00016438,2]
[421542821,1777841449000,-516.02,0.00016438,2]
[421542820,1777841449000,-1435.71,0.00016438,2]
[421542823,1777841449000,-500.0,0.00016438,2]
[421542817,1777841449000,-500.0,0.00016438,2]
[421542822,1777841449000,-500.0,0.00016438,2]
[421542819,1777841449000,-698.03,0.00016438,2]
[421542825,1777841449000,-977.85,0.00016438,2]
[421542827,1777841449000,-500.0,0.00016438,2]
[421542815,1777841449000,-1196.66994974,0.00016438,2]
[421542826,1777841449000,-637.3,0.00016438,2]
[421542830,1777841449000,-4408.38,0.00016438,2]
[421542832,1777841449000,-500.0,0.00016438,2]
[421542829,1777841449000,-500.0,0.00016438,2]
[421542831,1777841449000,-729.55,0.00016438,2]
[421542833,1777841449000,-9305.94,0.00016438,2]
[421542834,1777841449000,-3269.65,0.00016438,2]
[421542835,1777841449000,-5187.78,0.00016438,2]
[421542795,1777841449000,-838.67,0.00016438,2]
[421542828,1777841449000,-500.0,0.00016438,2]
[421542818,1777841449000,-879.18,0.00016438,2]
[421542813,1777841449000,-4.95905026,0.00016438,2]
[421542824,1777841449000,-500.0,0.00016438,2]
[421542796,1777841449000,-345.55371823,0.00016438,2]
[421542794,1777841449000,-500.0,0.00016438,2]
[421542797,1777841449000,-1413.18628177,0.00016438,2]
[421542816,1777841449000,-500.0,0.00016438,2]
[421542799,1777841449000,-500.0,0.00016438,2]
[421542800,1777841449000,-1507.82,0.00016438,2]
[421542804,1777841449000,-1383.7,0.00016438,2]
[421542812,1777841449000,-500.0,0.00016438,2]
[421542802,1777841449000,-531.23,0.00016438,2]
[421542807,1777841449000,-4921.16,0.00016438,2]
[421542798,1777841449000,-500.0,0.00016438,2]
[421542809,1777841449000,-177.55855814,0.00016438,2]
[421542806,1777841449000,-500.0,0.00016438,2]
[421542803,1777841449000,-500.0,0.00016438,2]
[421542805,1777841449000,-1079.18,0.00016438,2]
[421542808,1777841449000,-500.0,0.00016438,2]
[421542811,1777841449000,-712.81,0.00016438,2]
[421542810,1777841449000,-322.44144186,0.00016438,2]
[421542814,1777841449000,-3202.551,0.00016438,2]
[421542801,1777841449000,-500.0,0.00016438,2]
[421542838,1777841450000,-12508.26,0.00016438,2]
[421542847,1777841450000,-1947.21,0.00016438,2]
[421542842,1777841450000,-502.91,0.00016438,2]
[421542843,1777841450000,-500.0,0.00016438,2]
[421542846,1777841450000,-8928.59,0.00016438,2]
[421542841,1777841450000,-500.0,0.00016438,2]
[421542840,1777841450000,-3887.96,0.00016438,2]
[421542845,1777841450000,-4090.77,0.00016438,2]
[421542839,1777841450000,-500.0,0.00016438,2]
[421542837,1777841450000,-3390.1659791,0.00016438,2]
[421542836,1777841450000,-2212.8540209,0.00016438,2]
[421542850,1777841450000,-1750.73,0.00016438,2]
[421542844,1777841450000,-1052.42,0.00016438,2]
[421542848,1777841450000,-500.0,0.00016438,2]
[421542851,1777841450000,-2571.17,0.00016438,2]
[421542852,1777841450000,-500.0,0.00016438,2]
[421542849,1777841450000,-500.0,0.00016438,2]
[421542862,1777841450000,-2595.18826725,0.00016438,2]
[421542861,1777841450000,-1253.18,0.00016438,2]
[421542863,1777841450000,-3450.9484387,0.00016438,2]
[421542856,1777841450000,-500.0,0.00016438,2]
[421542860,1777841450000,-500.0,0.00016438,2]
[421542857,1777841450000,-500.0,0.00016438,2]
[421542859,1777841450000,-500.0,0.00016438,2]
[421542858,1777841450000,-500.0,0.00016438,2]
[421542853,1777841450000,-4144.37,0.00016438,2]
[421542854,1777841450000,-322.70727947,0.00016438,2]
[421542864,1777841450000,-31321.84848189,0.00016438,2]
[421542855,1777841450000,-3761.38,0.00016438,2]
[421542891,1777842031000,2500.0,0.00021918,120]
[421542990,1777842632000,-300.0,0.00014864,2]
[421542982,1777842632000,-300.0,0.00014864,2]
[421542980,1777842632000,-300.0,0.00014864,2]
[421542979,1777842632000,-396.0,0.00014863,2]
[421542978,1777842632000,-300.0,0.00014863,2]
[421542971,1777842632000,-3859.50665467,0.00012894,2]
[421542975,1777842632000,-213.749435,0.00013871,2]
[421542976,1777842632000,-1000.0,0.00014252,2]
[421542974,1777842632000,-1000.0,0.00013699,2]
[421542972,1777842632000,-603.0,0.00012894,2]
[421542977,1777842632000,-308.347,0.00014282,2]
[421542981,1777842632000,-300.0,0.00014864,2]
[421542973,1777842632000,-235.50791172,0.0001309,2]
[421542984,1777842632000,-300.0,0.00014864,2]
[421542986,1777842632000,-300.0,0.00014864,2]
[421542983,1777842632000,-300.0,0.00014864,2]
[421542997,1777842632000,-277.89933583,0.0001509,2]
[421542998,1777842632000,-160.0,0.00015622,2]
[421542991,1777842632000,-300.0,0.00014864,2]
[421542996,1777842632000,-196.349046,0.00015068,2]
[421542995,1777842632000,-600.0,0.00014864,2]
[421542993,1777842632000,-300.0,0.00014864,2]
[421542999,1777842632000,-34552.01710818,0.00016038,8]
[421542992,1777842632000,-300.0,0.00014864,2]
[421542989,1777842632000,-300.0,0.00014864,2]
[421542985,1777842632000,-300.0,0.00014864,2]
[421542988,1777842632000,-300.0,0.00014864,2]
[421542987,1777842632000,-300.0,0.00014864,2]
[421542994,1777842632000,-300.0,0.00014864,2]
[421543021,1777842640000,-500.0,0.00016163,2]
[421543010,1777842640000,-315.87756683,0.00016038,8]
[421543012,1777842640000,-442.0,0.00016094,2]
[421543020,1777842640000,-267.8444921,0.00016163,2]
[421543011,1777842640000,-34500.13532499,0.00016038,8]
[421543022,1777842640000,-500.0,0.00016163,2]
[421543013,1777842640000,-185.0,0.00016094,2]
[421543019,1777842640000,-500.0,0.00016163,2]
[421543015,1777842640000,-200.75819951,0.00016163,2]
[421543024,1777842640000,-500.0,0.00016163,2]
[421543018,1777842640000,-500.0,0.00016163,2]
[421543014,1777842640000,-1072.93,0.00016094,2]
[421543023,1777842640000,-500.0,0.00016163,2]
[421543017,1777842640000,-500.0,0.00016163,2]
[421543016,1777842640000,-500.0,0.00016163,2]
[421543043,1777842641000,-500.0,0.00016337,2]
[421543038,1777842641000,-500.0,0.00016337,2]
[421543036,1777842641000,-180.01576831,0.00016337,2]
[421543037,1777842641000,-500.0,0.00016337,2]
[421543035,1777842641000,-500.0,0.00016337,2]
[421543041,1777842641000,-637.91425498,0.00016337,2]
[421543032,1777842641000,-420.0,0.00016269,2]
[421543042,1777842641000,-500.0,0.00016337,2]
[421543039,1777842641000,-500.0,0.00016337,2]
[421543033,1777842641000,-500.0,0.00016337,2]
[421543031,1777842641000,-5611.69703229,0.00016251,2]
[421543028,1777842641000,-500.0,0.00016163,2]
[421543027,1777842641000,-500.0,0.00016163,2]
[421543025,1777842641000,-500.0,0.00016163,2]
[421543029,1777842641000,-227.25788402,0.00016163,2]
[421543030,1777842641000,-492.1597703,0.00016237,2]
[421543026,1777842641000,-156.84074391,0.00016163,2]
[421543044,1777842641000,-500.0,0.00016337,2]
[421543040,1777842641000,-311.24465624,0.00016337,2]
[421543034,1777842641000,-500.0,0.00016337,2]
[421543057,1777842641000,-500.0,0.00016337,2]
[421543064,1777842641000,-9.13237871,0.00016337,2]
[421543060,1777842641000,-454.62188576,0.00016337,2]
[421543063,1777842641000,-500.0,0.00016337,2]
[421543061,1777842641000,-9.13237871,0.00016337,2]
[421543059,1777842641000,-280.48777837,0.00016337,2]
[421543062,1777842641000,-490.86762129,0.00016337,2]
[421543055,1777842641000,-500.0,0.00016337,2]
[421543054,1777842641000,-500.0,0.00016337,2]
[421543051,1777842641000,-530.69185656,0.00016337,2]
[421543049,1777842641000,-500.0,0.00016337,2]
[421543050,1777842641000,-500.0,0.00016337,2]
[421543048,1777842641000,-478.78534887,0.00016337,2]
[421543047,1777842641000,-500.0,0.00016337,2]
[421543052,1777842641000,-500.0,0.00016337,2]
[421543045,1777842641000,-408.99987152,0.00016337,2]
[421543058,1777842641000,-219.51222163,0.00016337,2]
[421543056,1777842641000,-500.0,0.00016337,2]
[421543053,1777842641000,-500.0,0.00016337,2]
[421543046,1777842641000,-500.0,0.00016337,2]
[421543093,1777842643000,-500.0,0.00016337,2]
[421543085,1777842643000,-490.86762129,0.00016337,2]
[421543086,1777842643000,-350.58854866,0.00016337,2]
[421543088,1777842643000,-500.0,0.00016337,2]
[421543089,1777842643000,-500.0,0.00016337,2]
[421543087,1777842643000,-149.41145134,0.00016337,2]
[421543090,1777842643000,-201.54318732,0.00016337,2]
[421543094,1777842643000,-5683.86155152,0.00016338,2]
[421543092,1777842643000,-315.12059124,0.00016337,2]
[421543091,1777842643000,-500.0,0.00016337,2]
[421543388,1777842646000,-262.53654256,0.00016174,2]
[421543391,1777842646000,-9263.90298041,0.00016338,2]
[421543397,1777842647000,-248203.83590644,0.00016338,2]
[421543475,1777843832000,-540.0,0.00013027,2]
[421543474,1777843832000,-262.53654256,0.00013027,2]
[421543476,1777843832000,-225.23976677,0.00013226,2]
[421543478,1777843832000,-1000.0,0.00014457,2]
[421543477,1777843832000,-1000.0,0.00013699,2]
[421543479,1777843832000,-196.349046,0.0001517,2]
[421543482,1777843832000,-31228.30105679,0.00015938,2]
[421543483,1777843832000,-455.63099895,0.00015938,2]
[421543481,1777843832000,-246.677,0.00015717,2]
[421543480,1777843832000,-265.78292478,0.00015226,2]
[421543563,1777843838000,-648.94216788,0.00015938,2]
[421543556,1777843838000,-360.5428193,0.00015938,2]
[421543554,1777843838000,-503854.71180631,0.00015938,2]
[421543534,1777843838000,-4086.83690465,0.00015938,2]
[421543583,1777843841000,-579.20359296,0.00015938,2]
[421543592,1777843844000,-478.13732109,0.00015937,2]
[421543594,1777843844000,-500.0,0.00015937,2]
[421543593,1777843844000,-21.86267891,0.00015937,2]
[421543597,1777843844000,-143.16084526,0.00015937,2]
[421543595,1777843844000,-617.87125937,0.00015937,2]
[421543591,1777843844000,-500.0,0.00015937,2]
[421543596,1777843844000,-500.0,0.00015937,2]
[421543605,1777843844000,-654.89988739,0.00015938,2]
[421543603,1777843844000,-423.90228792,0.00015937,2]
[421543601,1777843844000,-431.31874085,0.00015937,2]
[421543599,1777843844000,-500.0,0.00015937,2]
[421543604,1777843844000,-1753.74663977,0.00015938,2]
[421543602,1777843844000,-355.72702081,0.00015937,2]
[421543600,1777843844000,-68.68125915,0.00015937,2]
[421543598,1777843844000,-53.37913322,0.00015937,2]
[421543615,1777843847000,-9509.23842076,0.00015938,2]
[421543616,1777843847000,-14667.86003772,0.00015938,2]
[421543779,1777845031000,-547.0,9.055e-05,2]
[421543780,1777845031000,-300.0,9.145e-05,2]
[421543784,1777845031000,-5000.0,9.146e-05,2]
[421543785,1777845031000,-256.82007009,9.285e-05,2]
[421543777,1777845031000,-1200.0,9.054e-05,2]
[421543783,1777845031000,-300.0,9.145e-05,2]
[421543782,1777845031000,-300.0,9.145e-05,2]
[421543778,1777845031000,-4259.98502438,9.055e-05,2]
[421543781,1777845031000,-300.0,9.145e-05,2]
[421543787,1777845031000,-300.0,9.4e-05,2]
[421543786,1777845031000,-300.0,9.33e-05,2]
[421543790,1777845031000,-300.0,9.612e-05,2]
[421543789,1777845031000,-300.0,9.612e-05,2]
[421543798,1777845031000,-300.0,9.612e-05,2]
[421543797,1777845031000,-300.0,9.612e-05,2]
[421543795,1777845031000,-300.0,9.612e-05,2]
[421543799,1777845031000,-300.0,9.612e-05,2]
[421543796,1777845031000,-300.0,9.612e-05,2]
[421543794,1777845031000,-300.0,9.612e-05,2]
[421543788,1777845031000,-5747.1426293,9.425e-05,2]
[421543793,1777845031000,-300.0,9.612e-05,2]
[421543791,1777845031000,-300.0,9.612e-05,2]
[421543792,1777845031000,-300.0,9.612e-05,2]
[421543809,1777845032000,-587.0,0.00011065,2]
[421543805,1777845032000,-1001.0,9.959e-05,2]
[421543806,1777845032000,-3604.53441863,0.0001,2]
[421543808,1777845032000,-420.0,0.0001006,2]
[421543810,1777845032000,-303.0476827,0.00011285,2]
[421543801,1777845032000,-300.0,9.612e-05,2]
[421543804,1777845032000,-10228.16695051,9.612e-05,2]
[421543802,1777845032000,-300.0,9.612e-05,2]
[421543800,1777845032000,-300.0,9.612e-05,2]
[421543811,1777845032000,-193.0,0.00012172,2]
[421543823,1777845032000,-500.0,0.00015068,2]
[421543807,1777845032000,-500.0,0.0001,2]
[421543813,1777845032000,-1421.65179409,0.000129,2]
[421543803,1777845032000,-300.0,9.612e-05,2]
[421543825,1777845032000,-182.43,0.00015162,2]
[421543824,1777845032000,-196.349046,0.00015068,2]
[421543814,1777845032000,-1421.65179407,0.000129,2]
[421543815,1777845032000,-1421.65179407,0.000129,2]
[421543817,1777845032000,-158.0,0.000135,3]
[421543819,1777845032000,-213.749434,0.00013699,2]
[421543816,1777845032000,-349.27529532,0.00013285,2]
[421543820,1777845032000,-1000.0,0.00013699,2]
[421543827,1777845032000,-15011.07930727,0.00015438,9]
[421543821,1777845032000,-1421.65179407,0.00013752,2]
[421543822,1777845032000,-1421.65179407,0.00015037,2]
[421543818,1777845032000,-1000.0,0.00013699,2]
[421543826,1777845032000,-395.50290794,0.00015285,2]
[421543812,1777845032000,-151.0,0.00012724,2]
[421543878,1777845038000,-152.0,0.00016234,7]
[421543876,1777845038000,-325.5033173,0.00016159,2]
[421543881,1777845038000,-152.0,0.00016239,7]
[421543882,1777845038000,-152.0,0.00016239,7]
[421543880,1777845038000,-152.0,0.00016234,7]
[421543874,1777845038000,-1072.93,0.00016076,2]
[421543872,1777845038000,-235.98,0.00016004,7]
[421543877,1777845038000,-152.0,0.00016234,7]
[421543870,1777845038000,-235.98,0.00016004,7]
[421543875,1777845038000,-164.96,0.00016098,2]
[421543871,1777845038000,-235.98,0.00016004,7]
[421543873,1777845038000,-152.0,0.00016004,7]
[421543879,1777845038000,-152.0,0.00016234,7]
[421543887,1777845038000,-152.0,0.00016239,7]
[421543888,1777845038000,-152.0,0.00016239,7]
[421543886,1777845038000,-152.0,0.00016239,7]
[421543894,1777845038000,-152.0,0.00016244,7]
[421543883,1777845038000,-152.0,0.00016239,7]
[421543895,1777845038000,-160.0,0.00016282,2]
[421543892,1777845038000,-152.0,0.00016244,7]
[421543889,1777845038000,-152.0,0.00016239,7]
[421543890,1777845038000,-2198.93629391,0.00016244,2]
[421543891,1777845038000,-152.0,0.00016244,7]
[421543893,1777845038000,-152.0,0.00016244,7]
[421543897,1777845038000,-4623.2370029,0.000163,2]
[421543896,1777845038000,-5377.96946052,0.000163,2]
[421543863,1777845038000,-235.98,0.00015999,7]
[421543884,1777845038000,-152.0,0.00016239,7]
[421543862,1777845038000,-235.98,0.00015999,7]
[421543854,1777845038000,-235.98,0.00015995,7]
[421543864,1777845038000,-235.98,0.00015999,7]
[421543838,1777845038000,-17385.38791486,0.00015438,9]
[421543837,1777845038000,-2155.54277787,0.00015438,9]
[421543841,1777845038000,-159.35539816,0.000158,2]
[421543839,1777845038000,-6564.02168025,0.00015738,2]
[421543840,1777845038000,-160.51,0.00015787,2]
[421543842,1777845038000,-174.63779804,0.000158,2]
[421543844,1777845038000,-179.96675065,0.000158,2]
[421543855,1777845038000,-152.0,0.00015995,7]
[421543847,1777845038000,-52443.18331327,0.00015838,2]
[421543849,1777845038000,-5050.52732907,0.00015895,2]
[421543843,1777845038000,-177.94859725,0.000158,2]
[421543907,1777845038000,-247.22,0.00016336,7]
[421543845,1777845038000,-197.342,0.000158,2]
[421543846,1777845038000,-2243720.49370756,0.00015838,2]
[421543853,1777845038000,-235.98,0.00015995,7]
[421543848,1777845038000,-151.5,0.00015889,2]
[421543851,1777845038000,-235.98,0.00015995,7]
[421543852,1777845038000,-235.98,0.00015995,7]
[421543850,1777845038000,-235.98,0.00015995,7]
[421543857,1777845038000,-235.98,0.00015999,7]
[421543865,1777845038000,-235.98,0.00015999,7]
[421543866,1777845038000,-152.0,0.00015999,7]
[421543867,1777845038000,-152.0,0.00015999,7]
[421543868,1777845038000,-235.98,0.00016004,7]
[421543869,1777845038000,-235.98,0.00016004,7]
[421543856,1777845038000,-235.98,0.00015999,7]
[421543859,1777845038000,-235.98,0.00015999,7]
[421543858,1777845038000,-235.98,0.00015999,7]
[421543860,1777845038000,-235.98,0.00015999,7]
[421543861,1777845038000,-235.98,0.00015999,7]
[421543908,1777845038000,-152.0,0.00016339,7]
[421543885,1777845038000,-152.0,0.00016239,7]
[421543909,1777845038000,-247.22,0.0001634,7]
[421543930,1777845038000,-2362.3694,0.00016438,2]
[421543937,1777845038000,-500.0,0.00016438,2]
[421543936,1777845038000,-500.0,0.00016438,2]
[421543946,1777845038000,-613.55,0.00016438,2]
[421543942,1777845038000,-500.0,0.00016438,2]
[421543938,1777845038000,-788.49,0.00016438,2]